fUSD/lending_fUSD_20251120
["ID","MTS","AMOUNT","RATE_DAILY","PERIOD"]
[394474230,1763617174721,-500.0,0.00037202,30]
[394474231,1763617174750,-1300.0,0.00037202,30]
[394474232,1763617174778,-500.0,0.00037202,30]
[394474233,1763617174806,-500.0,0.00037202,30]
[394474234,1763617174835,-500.0,0.00037202,30]
[394474235,1763617174865,-500.0,0.00037202,30]
[394474236,1763617174896,-500.0,0.00037202,30]
[394474237,1763617174926,-500.0,0.00037202,30]
[394474238,1763617174962,-1300.0,0.00037202,30]
[394474239,1763617174993,-649.19253436,0.00037202,30]
[394474240,1763617175023,-500.0,0.00037202,30]
[394474241,1763617175053,-500.0,0.00037202,30]
[394474242,1763617175082,-1300.0,0.00037202,30]
[394474243,1763617175110,-500.0,0.00037202,30]
[394474244,1763617175137,-922.84669334,0.00037202,30]
[394474245,1763617175165,-500.0,0.00037202,30]
[394474246,1763617175192,-500.0,0.00037202,30]
[394474247,1763617175221,-1300.0,0.00037202,30]
[394474248,1763617175249,-500.0,0.00037202,30]
[394474249,1763617175277,-500.0,0.00037202,30]
[394474250,1763617175304,-500.0,0.00037202,30]
[394474251,1763617175331,-1300.0,0.00037202,30]
[394474252,1763617175357,-500.0,0.00037202,30]
[394474253,1763617175384,-500.0,0.00037202,30]
[394474254,1763617175412,-500.0,0.00037202,30]
[394474255,1763617175440,-1300.0,0.00037202,30]
[394474256,1763617175468,-500.0,0.00037202,30]
[394474257,1763617175506,-500.0,0.00037202,30]
[394474258,1763617175536,-500.0,0.00037202,30]
[394474259,1763617175565,-1300.0,0.00037202,30]
[394474260,1763617175593,-500.0,0.00037202,30]
[394474261,1763617175621,-500.0,0.00037202,30]
[394474262,1763617175650,-500.0,0.00037202,30]
[394474263,1763617175678,-1300.0,0.00037202,30]
[394474264,1763617175711,-500.0,0.00037202,30]
[394474265,1763617175739,-500.0,0.00037202,30]
[394474266,1763617175767,-1300.0,0.00037202,30]
[394474267,1763617175794,-500.0,0.00037202,30]
[394474268,1763617175823,-500.0,0.00037202,30]
[394474269,1763617175850,-500.0,0.00037202,30]
[394474270,1763617175882,-500.0,0.00037202,30]
[394474271,1763617175911,-500.0,0.00037202,30]
[394474272,1763617175940,-500.0,0.00037202,30]
[394474273,1763617175970,-500.0,0.00037202,30]
[394474274,1763617176004,-500.0,0.00037202,30]
[394474275,1763617176034,-2520.02539597,0.00037202,30]
[394474276,1763617176062,-500.0,0.00037202,30]
[394474277,1763617176092,-500.0,0.00037202,30]
[394474278,1763617176124,-500.0,0.00037202,30]
[394474279,1763617176155,-500.0,0.00037202,30]
[394474280,1763617176186,-500.0,0.00037202,30]
[394474281,1763617176219,-500.0,0.00037202,30]
[394474282,1763617176251,-500.0,0.00037202,30]
[394474283,1763617176283,-500.0,0.00037202,30]
[394474284,1763617176312,-532.21699065,0.00037202,30]
[394474285,1763617176341,-500.0,0.00037202,30]
[394474286,1763617176625,-500.0,0.00037202,30]
[394474287,1763617176655,-500.0,0.00037202,30]
[394474288,1763617176683,-500.0,0.00037202,30]
[394474289,1763617176711,-500.0,0.00037202,30]
[394474290,1763617176739,-500.0,0.00037202,30]
[394474291,1763617176766,-500.0,0.00037202,30]
[394474292,1763617176794,-500.0,0.00037202,30]
[394474293,1763617176821,-500.0,0.00037202,30]
[394474294,1763617176849,-500.0,0.00037202,30]
[394474295,1763617176883,-500.0,0.00037202,30]
[394474296,1763617176911,-500.0,0.00037202,30]
[394474297,1763617176938,-500.0,0.00037202,30]
[394474298,1763617176965,-500.0,0.00037202,30]
[394474299,1763617176994,-500.0,0.00037202,30]
[394474300,1763617177024,-500.0,0.00037202,30]
[394474301,1763617177053,-500.0,0.00037202,30]
[394474302,1763617177082,-500.0,0.00037202,30]
[394474303,1763617177110,-500.0,0.00037202,30]
[394474304,1763617177138,-500.0,0.00037202,30]
[394474305,1763617177165,-500.0,0.00037202,30]
[394474306,1763617177192,-500.0,0.00037202,30]
[394474307,1763617177222,-861.21335243,0.00037202,30]
[394474308,1763617177251,-500.0,0.00037202,30]
[394474309,1763617177281,-500.0,0.00037202,30]
[394474310,1763617177318,-500.0,0.00037202,30]
[394474311,1763617177346,-500.0,0.00037202,30]
[394474312,1763617177378,-624.07674331,0.00037202,30]
[394474313,1763617177410,-2000.0,0.00037248,120]
[394474314,1763617177442,-599.77692,0.00037288,30]
[394474315,1763617177470,-599.77692,0.00037488,30]
[394474316,1763617177499,-599.77692,0.00037688,30]
[394474317,1763617177528,-500.0,0.00037852,30]
[394474318,1763617177555,-500.0,0.00037852,30]
[394474319,1763617177582,-601.22072725,0.00037852,30]
[394474320,1763617177612,-500.0,0.00037852,30]
[394474321,1763617177640,-648.04232761,0.00037852,30]
[394474322,1763617177668,-500.0,0.00037852,30]
[394474323,1763617177696,-571.04350417,0.00037852,30]
[394474324,1763617177725,-906.53233544,0.00037852,30]
[394474325,1763617177753,-905.52440337,0.00037852,30]
[394474326,1763617177781,-945.20618373,0.00037852,30]
[394474327,1763617177810,-968.37313835,0.00037852,30]
[394474328,1763617177838,-595.02891571,0.00037852,30]
[394474329,1763617177869,-500.0,0.00037852,30]
[394474330,1763617177896,-500.0,0.00037852,30]
[394474331,1763617177923,-500.0,0.00037852,30]
[394474332,1763617177951,-864.99252116,0.00037852,30]
[394474333,1763617177983,-839.96985956,0.00037852,30]
[394474334,1763617178012,-500.0,0.00037852,30]
[394474335,1763617178040,-500.0,0.00037852,30]
[394474336,1763617178069,-500.0,0.00037852,30]
[394474337,1763617178098,-570.86264342,0.00037852,30]
[394474338,1763617178125,-500.0,0.00037852,30]
[394474339,1763617178156,-500.0,0.00037852,30]
[394474340,1763617178194,-500.0,0.00037852,30]
[394474341,1763617178226,-500.0,0.00037852,30]
[394474342,1763617178261,-500.0,0.00037852,30]
[394474343,1763617178296,-530.17590155,0.00037852,30]
[394474344,1763617178330,-500.0,0.00037852,30]
[394474345,1763617178362,-150.3089949,0.0003787,120]
[394474346,1763617178397,-599.77692,0.00037888,30]
[394474347,1763617178433,-1107.0,0.0003791,120]
[394474348,1763617178472,-164.0,0.00038,30]
[394474349,1763617178506,-279.04438321,0.00038,120]
[394474350,1763617178542,-390.0,0.00038,30]
[394474351,1763617178577,-300.0,0.00038,120]
[394474352,1763617178611,-599.77692,0.00038088,30]
[394474353,1763617178647,-1548.1616,0.00038111,120]
[394474354,1763617178686,-5000.0,0.000382,30]
[394474355,1763617178726,-599.77692,0.00038288,30]
[394474356,1763617178761,-3305.0,0.00038356,30]
[394474357,1763617178801,-4072.89,0.000384,30]
[394474358,1763617178838,-599.77692,0.00038488,30]
[394474359,1763617178874,-599.77692,0.00038688,30]
[394474360,1763617178919,-500.0,0.000387,120]
[394474361,1763617178955,-500.0,0.000387,120]
[394474362,1763617178987,-500.0,0.000387,120]
[394474363,1763617179021,-2089.54719,0.00038748,120]
[394474364,1763617179057,-623.03578077,0.00038959,30]
[394474365,1763617179092,-1201.75217731,0.00039,120]
[394474366,1763617179129,-237.31784924,0.00039025,30]
[394474367,1763617179166,-599.77692,0.00039088,30]
[394474368,1763617179204,-623.03578077,0.00039096,30]
[394474369,1763617179243,-201.25777895,0.00039098,120]
[394474370,1763617179278,-1500.0,0.00039111,120]
[394474371,1763617179316,-5000.0,0.000392,30]
[394474372,1763617179352,-623.03578077,0.0003926,30]
[394474373,1763617179392,-599.77692,0.00039288,30]
[394474374,1763617179432,-155.98,0.000393,120]
[394474375,1763617179470,-156.94,0.00039315,120]
[394474376,1763617179509,-160.65,0.00039317,120]
[394474377,1763617179547,-156.93,0.00039318,120]
[394474378,1763617179585,-160.98,0.00039329,120]
[394474379,1763617179620,-183.48,0.00039384,120]
[394474380,1763617179656,-156.94,0.00039415,120]
[394474381,1763617179691,-160.65,0.00039417,120]
[394474382,1763617179727,-156.93,0.00039418,120]
[394474383,1763617179760,-623.03578077,0.00039425,30]
[394474384,1763617179794,-160.98,0.00039429,120]
[394474385,1763617179829,-599.77692,0.00039488,30]
[394474386,1763617179868,-156.94,0.00039515,120]
[394474387,1763617179902,-160.65,0.00039517,120]
[394474388,1763617179939,-156.93,0.00039518,120]
[394474389,1763617179973,-160.98,0.00039529,120]
[394474390,1763617180007,-623.03578077,0.00039589,30]
[394474391,1763617180040,-407.82231442,0.000396,120]
[394474392,1763617180265,-1014.96,0.000396,30]
[394474393,1763617180298,-156.97,0.00039615,120]
[394474394,1763617180333,-160.65,0.00039617,120]
[394474395,1763617180367,-156.93,0.00039618,120]
[394474396,1763617180401,-161.01173463,0.00039629,120]
[394474397,1763617180433,-599.77692,0.00039688,30]
[394474398,1763617180465,-1200.0,0.00039694,30]
[394474399,1763617180498,-156.93,0.00039718,120]
[394474400,1763617180530,-623.03578077,0.00039726,30]
[394474401,1763617180559,-925.2,0.00039798,30]
[394474402,1763617180590,-156.93,0.00039818,120]
[394474403,1763617180620,-599.77692,0.00039888,30]
[394474404,1763617180651,-623.03578077,0.0003989,30]
[394474405,1763617180686,-166.0,0.000399,90]
[394474406,1763617180718,-185.53976766,0.000399,120]
[394474407,1763617180746,-185.53976763,0.000399,120]
[394474408,1763617180775,-185.53976763,0.000399,120]
[394474409,1763617180805,-185.53976763,0.000399,120]
[394474410,1763617180837,-156.93,0.00039918,120]
[394474411,1763617180868,-41988.0,0.0004,30]
[394474412,1763617180895,-186.46505556,0.0004,30]
[394474413,1763617180927,-324.39864409,0.0004,120]
[394474414,1763617180955,-1007.92064577,0.0004,120]
[394474415,1763617180983,-376.71427535,0.0004,120]
[394474416,1763617181010,-500.0,0.0004,30]
[394474417,1763617181039,-311.0,0.0004,30]
[394474418,1763617181066,-358.70603912,0.0004,120]
[394474419,1763617181096,-746.85440682,0.0004,30]
[394474420,1763617181124,-164.13496762,0.0004,30]
[394474421,1763617181152,-35188.0,0.0004,40]
[394474422,1763617181180,-300.0,0.0004,120]
[394474423,1763617181208,-500.0,0.0004,30]
[394474424,1763617181236,-423.08,0.0004,120]
[394474425,1763617181266,-260.83,0.0004,30]
[394474426,1763617181294,-407.1,0.0004,120]
[394474427,1763617181327,-635.97,0.0004,120]
[394474428,1763617181363,-228.84,0.0004,120]
[394474429,1763617181391,-219.87,0.0004,120]
[394474430,1763617181420,-587.05,0.0004,120]
[394474431,1763617181449,-190.68,0.0004,30]
[394474432,1763617181480,-213.09,0.0004,120]
[394474433,1763617181511,-1056.91,0.0004,120]
[394474434,1763617181541,-2500.0,0.0004,120]
[394474435,1763617181570,-160.0,0.0004,120]
[394474436,1763617181597,-22869.7997806,0.0004,100]
[394474437,1763617181626,-734.08,0.0004,120]
[394474438,1763617181654,-217.91,0.0004,90]
[394474439,1763617181681,-246.05156352,0.00040012,120]
[394474440,1763617181712,-156.93,0.00040018,120]
[394474441,1763617181742,-623.03578077,0.00040055,30]
[394474442,1763617181771,-1777.6468,0.00040087,30]
[394474443,1763617181800,-599.77692,0.00040088,30]
[394474444,1763617181829,-811.78197965,0.000401,120]
[394474445,1763617181864,-156.93,0.00040118,120]
[394474446,1763617181893,-623.03578077,0.00040192,30]
[394474447,1763617181925,-156.93,0.00040218,120]
[394474448,1763617181958,-599.77692,0.00040288,30]
[394474449,1763617181989,-156.93,0.00040318,120]
[394474450,1763617182019,-1014.96,0.0004032,120]
[394474451,1763617182048,-623.03578077,0.00040356,30]
[394474452,1763617182079,-156.93,0.00040418,120]
[394474453,1763617182110,-171.70470529,0.00040438,30]
[394474454,1763617182138,-599.77692,0.00040488,30]
[394474455,1763617182170,-156.93,0.00040518,120]
[394474456,1763617182200,-623.03578077,0.00040521,30]
[394474457,1763617182233,-156.93,0.00040618,120]
[394474458,1763617182262,-623.03578077,0.00040685,30]
[394474459,1763617182291,-599.77692,0.00040688,30]
[394474460,1763617182324,-150.0,0.0004069,120]
[394474461,1763617182353,-5158.0,0.000407,117]
[394474462,1763617182387,-156.93,0.00040718,120]
[394474463,1763617182417,-500.0,0.00040767,30]
[394474464,1763617182449,-500.0,0.00040767,30]
[394474465,1763617182478,-500.0,0.00040767,30]
[394474466,1763617182507,-300.2005,0.00040779,102]
[394474467,1763617182540,-156.93,0.00040818,120]
[394474468,1763617182572,-171.70470529,0.00040877,30]
[394474469,1763617182609,-599.77692,0.00040888,30]
[394474470,1763617182641,-765.76685759,0.000409,120]
[394474471,1763617182672,-156.93,0.00040918,120]
[394474472,1763617182702,-4812.626,0.00040942,59]
[394474473,1763617182731,-344.915,0.00040942,59]
[394474474,1763617182759,-183.0,0.00040952,120]
[394474475,1763617182789,-192.0,0.00040954,120]
[394474476,1763617182817,-182.0,0.00040965,120]
[394474477,1763617182847,-225.54,0.00041,120]
[394474478,1763617182880,-193.66989267,0.00041,100]
[394474479,1763617182908,-264.99904577,0.00041,120]
[394474480,1763617182939,-1000.0,0.00041,30]
[394474481,1763617182969,-1000.0,0.00041,30]
[394474482,1763617183000,-1000.0,0.00041,30]
[394474483,1763617183029,-1000.0,0.00041,30]
[394474484,1763617183057,-1000.0,0.00041,30]
[394474485,1763617183087,-1000.0,0.00041,30]
[394474486,1763617183118,-1000.0,0.00041,30]
[394474487,1763617183147,-1000.0,0.00041,30]
[394474488,1763617183176,-1000.0,0.00041,30]
[394474489,1763617183208,-1000.0,0.00041,30]
[394474490,1763617183240,-1000.0,0.00041,30]
[394474491,1763617183272,-1000.0,0.00041,30]
[394474492,1763617183303,-1000.0,0.00041,30]
[394474493,1763617183482,-1000.0,0.00041,30]
[394474494,1763617183516,-1000.0,0.00041,30]
[394474495,1763617183548,-1000.0,0.00041,30]
[394474496,1763617183582,-1000.0,0.00041,30]
[394474497,1763617183615,-1000.0,0.00041,30]
[394474498,1763617183646,-1000.0,0.00041,30]
[394474499,1763617183678,-1000.0,0.00041,30]
[394474500,1763617183708,-1000.0,0.00041,30]
[394474501,1763617183738,-1000.0,0.00041,30]
[394474502,1763617183768,-1000.0,0.00041,30]
[394474503,1763617183796,-1000.0,0.00041,30]
[394474504,1763617183825,-1000.0,0.00041,30]
[394474505,1763617183854,-1000.0,0.00041,30]
[394474506,1763617183886,-1000.0,0.00041,30]
[394474507,1763617183915,-1000.0,0.00041,30]
[394474508,1763617183945,-1000.0,0.00041,30]
[394474509,1763617183974,-1000.0,0.00041,30]
[394474510,1763617184005,-1000.0,0.00041,30]
[394474511,1763617184036,-1520.58,0.00041,30]
[394474512,1763617184065,-7671.90684134,0.00041,120]
[394474513,1763617184098,-78144.59743901,0.00041,30]
[394474514,1763617184128,-156.99320533,0.00041018,120]
[394474515,1763617184157,-1014.96,0.0004104,120]
[394474516,1763617184186,-500.0,0.00041041,30]
[394474517,1763617184217,-500.0,0.00041041,30]
[394474518,1763617184248,-599.77692,0.00041088,30]
[394474519,1763617184286,-910.42808652,0.00041095,120]
[394474520,1763617184339,-503.53163744,0.00041095,120]
[394474521,1763617184375,-250.7,0.00041096,120]
[394474522,1763617184406,-222.38,0.00041096,120]
[394474523,1763617184437,-4072.89,0.000411,30]
[394474524,1763617184468,-1038.30196705,0.000411,120]
[394474525,1763617184500,-1038.30196705,0.000411,120]
[394474526,1763617184533,-1038.30196705,0.000411,120]
[394474527,1763617184567,-1038.30196705,0.000411,120]
[394474528,1763617184600,-1038.30196705,0.000411,120]
[394474529,1763617184633,-1038.30196705,0.000411,120]
[394474530,1763617184666,-1038.30196705,0.000411,120]
[394474531,1763617184696,-1038.30196705,0.000411,120]
[394474532,1763617184729,-1038.30196705,0.000411,120]
[394474533,1763617184760,-1038.30196705,0.000411,120]
[394474534,1763617184792,-1038.30196705,0.000411,120]
[394474535,1763617184823,-1038.30196705,0.000411,120]
[394474536,1763617184854,-1038.30196705,0.000411,120]
[394474537,1763617184888,-1038.30196705,0.000411,120]
[394474538,1763617184919,-1038.30196705,0.000411,120]
[394474539,1763617184951,-1038.30196705,0.000411,120]
[394474540,1763617184982,-1038.30196705,0.000411,120]
[394474541,1763617185017,-1038.30196705,0.000411,120]
[394474542,1763617185049,-1038.30196705,0.000411,120]
[394474543,1763617185079,-1038.3,0.000411,120]
[394474544,1763617185109,-2422.70458979,0.000411,120]
[394474545,1763617185142,-2422.70458979,0.000411,120]
[394474546,1763617185173,-2422.70458979,0.000411,120]
[394474547,1763617185202,-2422.70458979,0.000411,120]
[394474548,1763617185233,-2422.70458979,0.000411,120]
[394474549,1763617185263,-2422.70458979,0.000411,120]
[394474550,1763617185292,-2422.70458979,0.000411,120]
[394474551,1763617185322,-2422.70458979,0.000411,120]
[394474552,1763617185351,-2422.70458979,0.000411,120]
[394474553,1763617185379,-2422.70458979,0.000411,120]
[394474554,1763617185409,-2422.70458979,0.000411,120]
[394474555,1763617185438,-2422.70458979,0.000411,120]
[394474556,1763617185468,-2422.70458979,0.000411,120]
[394474557,1763617185497,-2422.70458979,0.000411,120]
[394474558,1763617185527,-2422.70458979,0.000411,120]
[394474559,1763617185554,-2422.70458979,0.000411,120]
[394474560,1763617185583,-2422.70458979,0.000411,120]
[394474561,1763617185611,-2422.70458979,0.000411,120]
[394474562,1763617185641,-2422.70458979,0.000411,120]
[394474563,1763617185672,-2422.7,0.000411,120]
[394474564,1763617185702,-608.91358795,0.000411,120]
[394474565,1763617185730,-608.91358795,0.000411,120]
[394474566,1763617185758,-608.91358795,0.000411,120]
[394474567,1763617185787,-608.91358795,0.000411,120]
[394474568,1763617185816,-608.91358795,0.000411,120]
[394474569,1763617185846,-608.91358795,0.000411,120]
[394474570,1763617185876,-608.91358795,0.000411,120]
[394474571,1763617185907,-608.91358795,0.000411,120]
[394474572,1763617185936,-608.91358795,0.000411,120]
[394474573,1763617185967,-608.91358795,0.000411,120]
[394474574,1763617185997,-608.91358795,0.000411,120]
[394474575,1763617186028,-608.91358795,0.000411,120]
[394474576,1763617186059,-608.91358795,0.000411,120]
[394474577,1763617186089,-608.91358795,0.000411,120]
[394474578,1763617186118,-608.91358795,0.000411,120]
[394474579,1763617186146,-608.91358795,0.000411,120]
[394474580,1763617186175,-608.91358795,0.000411,120]
[394474581,1763617186204,-608.91358795,0.000411,120]
[394474582,1763617186233,-608.91358795,0.000411,120]
[394474583,1763617186264,-608.91,0.000411,120]
[394474584,1763617186294,-1420.79837188,0.000411,120]
[394474585,1763617186323,-1420.79837188,0.000411,120]
[394474586,1763617186352,-1420.79837188,0.000411,120]
[394474587,1763617186382,-1420.79837188,0.000411,120]
[394474588,1763617186412,-1420.79837188,0.000411,120]
[394474589,1763617186440,-1420.79837188,0.000411,120]
[394474590,1763617186468,-1420.79837188,0.000411,120]
[394474591,1763617186496,-1420.79837188,0.000411,120]
[394474592,1763617186524,-1420.79837188,0.000411,120]
[394474593,1763617186552,-1420.79837188,0.000411,120]
[394474594,1763617186580,-1420.79837188,0.000411,120]
[394474595,1763617186610,-1420.79837188,0.000411,120]
[394474596,1763617186639,-1420.79837188,0.000411,120]
[394474597,1763617186813,-1420.79837188,0.000411,120]
[394474598,1763617186848,-1420.79837188,0.000411,120]
[394474599,1763617186883,-1420.79837188,0.000411,120]
[394474600,1763617186913,-1420.79837188,0.000411,120]
[394474601,1763617186943,-1420.79837188,0.000411,120]
[394474602,1763617186972,-1420.79837188,0.000411,120]
[394474603,1763617187001,-1420.79,0.000411,120]
[394474604,1763617187031,-590.55893596,0.000411,120]
[394474605,1763617187061,-590.55893596,0.000411,120]
[394474606,1763617187090,-590.55893596,0.000411,120]
[394474607,1763617187120,-590.55893596,0.000411,120]
[394474608,1763617187147,-590.55893596,0.000411,120]
[394474609,1763617187175,-590.55893596,0.000411,120]
[394474610,1763617187203,-590.55893596,0.000411,120]
[394474611,1763617187232,-590.55893596,0.000411,120]
[394474612,1763617187260,-590.55893596,0.000411,120]
[394474613,1763617187288,-590.55893596,0.000411,120]
[394474614,1763617187317,-590.55893596,0.000411,120]
[394474615,1763617187345,-590.55893596,0.000411,120]
[394474616,1763617187373,-590.55893596,0.000411,120]
[394474617,1763617187403,-590.55893596,0.000411,120]
[394474618,1763617187432,-590.55893596,0.000411,120]
[394474619,1763617187461,-590.55893596,0.000411,120]
[394474620,1763617187491,-590.55893596,0.000411,120]
[394474621,1763617187519,-590.55893596,0.000411,120]
[394474622,1763617187550,-590.55893596,0.000411,120]
[394474623,1763617187579,-590.55,0.000411,120]
[394474624,1763617187610,-1377.97085058,0.000411,120]
[394474625,1763617187639,-1377.97085058,0.000411,120]
[394474626,1763617187669,-1377.97085058,0.000411,120]
[394474627,1763617187697,-1377.97085058,0.000411,120]
[394474628,1763617187726,-1377.97085058,0.000411,120]
[394474629,1763617187754,-1377.97085058,0.000411,120]
[394474630,1763617187782,-1377.97085058,0.000411,120]
[394474631,1763617187811,-1377.97085058,0.000411,120]
[394474632,1763617187839,-1377.97085058,0.000411,120]
[394474633,1763617187871,-1377.97085058,0.000411,120]
[394474634,1763617187900,-1377.97085058,0.000411,120]
[394474635,1763617187928,-1377.97085058,0.000411,120]
[394474636,1763617187959,-1377.97085058,0.000411,120]
[394474637,1763617187988,-1377.97085058,0.000411,120]
[394474638,1763617188017,-1377.97085058,0.000411,120]
[394474639,1763617188045,-1377.97085058,0.000411,120]
[394474640,1763617188075,-1377.97085058,0.000411,120]
[394474641,1763617188106,-1377.97085058,0.000411,120]
[394474642,1763617188137,-1377.97085058,0.000411,120]
[394474643,1763617188167,-1377.97,0.000411,120]
[394474644,1763617188197,-511.70065635,0.0004111,60]
[394474645,1763617188229,-1139.13398185,0.00041218,50]
[394474646,1763617188260,-1973.18743913,0.00041218,50]
[394474647,1763617188291,-1110.30080651,0.00041218,50]
[394474648,1763617188320,-1087.41594733,0.00041226,50]
[394474649,1763617188350,-1020.20016929,0.00041226,50]
[394474650,1763617188378,-1117.44373102,0.00041226,50]
[394474651,1763617188408,-1080.87620962,0.00041226,50]
[394474652,1763617188441,-1148.50769921,0.00041226,50]
[394474653,1763617188475,-1030.93710026,0.00041226,50]
[394474654,1763617188510,-1015.81692387,0.00041226,50]
[394474655,1763617188542,-1246.28843757,0.00041226,50]
[394474656,1763617188573,-270.4823256,0.00041227,50]
[394474657,1763617188604,-928.01677968,0.00041261,120]
[394474658,1763617188636,-599.77692,0.00041288,30]
[394474659,1763617188666,-1100.0,0.00041297,60]
[394474660,1763617188695,-150.0,0.00041297,120]
[394474661,1763617188724,-150.0,0.00041297,120]
[394474662,1763617188755,-150.0,0.00041297,120]
[394474663,1763617188784,-150.0,0.00041297,120]
[394474664,1763617188813,-150.0,0.00041297,120]
[394474665,1763617188843,-150.0,0.00041297,120]
[394474666,1763617188875,-240.65732218,0.00041297,120]
[394474667,1763617188904,-500.0,0.00041315,30]
[394474668,1763617188934,-500.0,0.00041315,30]
[394474669,1763617188963,-1277.13166293,0.0004137,120]
[394474670,1763617188992,-1416.72279416,0.00041397,120]
[394474671,1763617189021,-300.0,0.000414,120]
[394474672,1763617189052,-18780.79112593,0.0004142,120]
[394474673,1763617189081,-1630.12192876,0.0004145,30]
[394474674,1763617189112,-982.0,0.00041479,30]
[394474675,1763617189142,-1200.0,0.0004148,30]
[394474676,1763617189171,-599.77692,0.00041488,30]
[394474677,1763617189199,-2644.0,0.000415,120]
[394474678,1763617189228,-175.00164386,0.000415,120]
[394474679,1763617189257,-203.6357478,0.000415,120]
[394474680,1763617189286,-217.32483357,0.000415,120]
[394474681,1763617189315,-2261.32521752,0.000415,120]
[394474682,1763617189342,-189.28916149,0.000415,120]
[394474683,1763617189371,-175.59342701,0.000415,120]
[394474684,1763617189399,-235.77906304,0.000415,120]
[394474685,1763617189429,-201.11936185,0.000415,120]
[394474686,1763617189459,-389.78481277,0.000415,120]
[394474687,1763617189489,-369.71190241,0.000415,120]
[394474688,1763617189519,-337.53010893,0.000415,120]
[394474689,1763617189549,-603988.68787558,0.000415,30]
[394474690,1763617189579,-297.71479566,0.00041541,120]
[394474691,1763617189609,-152.14703909,0.00041555,60]
[394474692,1763617189639,-500.0,0.00041589,30]
[394474693,1763617189668,-500.0,0.00041589,30]
[394474694,1763617189698,-2500.0,0.000416,120]
[394474695,1763617189730,-2845.67681672,0.0004166,120]
[394474696,1763617189761,-599.77692,0.00041688,30]
[394474697,1763617189791,-389.61184234,0.0004169,30]
[394474698,1763617189823,-1014.96,0.0004176,120]
[394474699,1763617189855,-500.0,0.000418,120]
[394474700,1763617189890,-173.74921227,0.0004183,120]
[394474701,1763617190049,-1280.37629059,0.0004183,120]
[394474702,1763617190080,-175.24866702,0.0004183,120]
[394474703,1763617190110,-244.03543138,0.00041838,120]
[394474704,1763617190139,-201.25777895,0.00041838,120]
[394474705,1763617190172,-227.86790056,0.00041838,120]
[394474706,1763617190200,-73117.0,0.0004184,30]
[394474707,1763617190231,-307960.4456,0.0004184,30]
[394474708,1763617190261,-1100.0,0.00041845,60]
[394474709,1763617190292,-500.0,0.00041863,30]
[394474710,1763617190320,-500.0,0.00041863,30]
[394474711,1763617190349,-599.77692,0.00041888,30]
[394474712,1763617190378,-200.0,0.00041891,120]
[394474713,1763617190408,-261.27442641,0.000419,120]
[394474714,1763617190439,-2000.0,0.000419,120]
[394474715,1763617190469,-982.0,0.00041907,30]
[394474716,1763617190499,-1000.0,0.00041918,30]
[394474717,1763617190527,-1000.0,0.00041918,30]
[394474718,1763617190556,-1000.0,0.00041918,30]
[394474719,1763617190585,-1000.0,0.00041918,30]
[394474720,1763617190613,-1000.0,0.00041918,30]
[394474721,1763617190644,-1000.0,0.00041918,30]
[394474722,1763617190672,-1000.0,0.00041918,30]
[394474723,1763617190700,-1000.0,0.00041918,30]
[394474724,1763617190728,-1000.0,0.00041918,30]
[394474725,1763617190757,-1000.0,0.00041918,30]
[394474726,1763617190786,-1000.0,0.00041918,30]
[394474727,1763617190816,-1000.0,0.00041918,30]
[394474728,1763617190846,-1000.0,0.00041918,30]
[394474729,1763617190882,-1000.0,0.00041918,30]